bitfinex/quotes_BTCUSD_20240811
["timestamp","ask_amount","ask_price","bid_price","bid_amount"]
[1723388965452,0.08184646,60113.0,60107.0,0.0641]
[1723388965665,0.08184646,60113.0,60107.0,0.34437292]
[1723388965879,0.08184646,60113.0,60107.0,0.0641]
[1723388966088,0.08184646,60113.0,60111.0,0.116449]
[1723388966293,0.01,60106.0,60105.0,0.0641]
[1723388966520,0.01,60106.0,60089.0,0.2499]
[1723388966521,0.02,60102.0,60096.0,0.0641]
[1723388966733,0.09184646,60106.0,60096.0,0.1397]
[1723388966734,0.08184646,60097.0,60096.0,0.1397]
[1723388966945,0.08184646,60098.0,60097.0,0.116478]
[1723388967163,0.08184646,60098.0,60096.0,0.1397]
[1723388967360,0.01,60097.0,60096.0,0.1397]
[1723388967765,0.01,60090.0,60087.0,0.0641]
[1723388967969,0.08184646,60098.0,60087.0,0.0641]
[1723388967970,0.08184646,60088.0,60087.0,0.0641]
[1723388968184,0.10184646,60088.0,60087.0,0.0641]
[1723388968376,0.09184646,60088.0,60087.0,0.0641]
[1723388968579,0.11184646,60088.0,60087.0,0.0641]
[1723388968788,0.012,60082.0,60081.0,0.0756]
[1723388969029,0.01,60082.0,60081.0,0.0756]
[1723388969228,0.01,60085.0,60081.0,0.0756]
[1723388969429,0.08184646,60088.0,60082.0,0.11983436]
[1723388969632,0.01,60087.0,60082.0,0.00332836]
[1723388969842,0.126507,60082.0,60081.0,0.0756]
[1723388970047,0.126507,60082.0,60059.0,0.85596061]
[1723388970048,0.379563,60075.0,60074.0,0.0811]
[1723388970253,0.359563,60075.0,60074.0,0.0811]
[1723388970463,0.379563,60075.0,60074.0,0.0811]
[1723388970667,0.146521,60075.0,60074.0,0.0811]
[1723388970891,0.146521,60075.0,60066.0,0.116537]
[1723388970892,0.845685,60072.0,60066.0,0.0811]
[1723388971104,0.845685,60072.0,60060.0,0.0811]
[1723388971105,0.92953146,60072.0,60060.0,0.0811]
[1723388971308,1.09334638,60072.0,60063.0,0.0033293]
[1723388971510,1.09334638,60072.0,60059.0,0.60606061]
[1723388972525,1.32639938,60072.0,60059.0,0.60606061]
[1723388972821,1.42639938,60072.0,60059.0,0.60606061]
[1723388973016,1.19334638,60072.0,60059.0,0.60606061]
[1723388973246,0.46342546,60072.0,60063.0,0.00332972]
[1723388973463,0.46342546,60072.0,60059.0,0.60606061]
[1723388973464,0.08184646,60072.0,60069.0,0.0811]
[1723388973647,0.19381492,60072.0,60060.0,0.0811]
[1723388973805,0.77844692,60072.0,60063.0,0.00332959]
[1723388974028,0.77844692,60072.0,60060.0,0.0811]
[1723388974237,0.126526,60072.0,60060.0,0.0811]
[1723388974441,0.032,60072.0,60066.0,0.116537]
[1723388974651,0.032,60072.0,60062.0,0.2457763]
[1723388974652,0.54539392,60072.0,60062.0,0.0126853]
[1723388974848,0.77844692,60072.0,60062.0,0.0126853]
[1723388975048,0.77844692,60072.0,60071.0,0.0010163]
[1723388975260,1.11149992,60072.0,60071.0,0.0010163]
[1723388975671,0.87844692,60072.0,60071.0,0.0010163]
[1723388976206,1.30422306,60072.0,60071.0,0.0010163]
[1723388976598,1.53727606,60072.0,60071.0,0.0010163]
[1723388976793,1.30422306,60072.0,60071.0,0.0010163]
[1723388976992,1.53727606,60072.0,60071.0,0.0010163]
[1723388977197,2.08985292,60072.0,60071.0,0.0010163]
[1723388977397,3.08269015,60072.0,60071.0,0.0010163]
[1723388977612,2.26017115,60072.0,60071.0,0.0010163]
[1723388978052,2.39380592,60072.0,60071.0,0.0010163]
[1723388978370,2.66790192,60072.0,60071.0,0.0010163]
[1723388978494,2.88004021,60072.0,60071.0,0.0010163]
[1723388978841,2.83205162,60072.0,60071.0,0.0010163]
[1723388979053,2.73470562,60072.0,60071.0,0.0010163]
[1723388979403,2.16075292,60072.0,60071.0,0.0010163]
[1723388979587,2.30848292,60072.0,60071.0,0.0010163]
[1723388979987,2.39380592,60072.0,60071.0,0.0010163]
[1723388980193,2.16075292,60072.0,60071.0,0.0010163]
[1723388980606,2.16075292,60072.0,60071.0,0.0025163]
[1723388980607,2.05075292,60072.0,60071.0,0.0025163]
[1723388980801,0.77644692,60072.0,60071.0,0.0025163]
[1723388981206,1.01149992,60072.0,60071.0,0.0025163]
[1723388981503,0.381579,60072.0,60071.0,0.0025163]
[1723388981685,0.161211,60072.0,60071.0,0.0025163]
[1723388981897,0.012685,60072.0,60071.0,0.1190443]
[1723388982091,0.09184646,60081.0,60077.0,0.116516]
[1723388982351,0.09184646,60081.0,60071.0,0.0025163]
[1723388982352,0.02,60078.0,60072.0,0.0811]
[1723388982545,0.02,60078.0,60077.0,0.197617]
[1723388982665,0.02,60092.0,60077.0,0.30961492]
[1723388982872,0.02,60088.0,60079.0,0.0811]
[1723388983070,0.02,60088.0,60087.0,0.262297]
[1723388983273,0.01,60104.0,60088.0,0.0811]
[1723388983481,0.01,60104.0,60087.0,0.22851492]
[1723388983482,0.06666,60105.0,60104.0,0.116464]
[1723388983680,0.01,60114.0,60104.0,0.2164]
[1723388983887,0.526633,60129.0,60121.0,0.116431]
[1723388983888,0.01,60124.0,60121.0,0.116431]
[1723388984092,0.066639,60124.0,60123.0,0.349282]
[1723388984286,0.116411,60132.0,60123.0,0.1231]
[1723388984508,0.08184646,60128.0,60123.0,0.239527]
[1723388984705,0.08184646,60128.0,60123.0,0.1231]
[1723388984706,0.116423,60126.0,60123.0,0.1231]
[1723388984922,0.01,60124.0,60123.0,0.1231]
[1723388985168,0.126426,60124.0,60123.0,0.1231]
[1723388985389,0.01,60124.0,60123.0,0.1231]
[1723388985604,0.08184646,60128.0,60123.0,0.1231]
[1723388985859,0.08184646,60128.0,60124.0,0.00332598]
[1723388986205,0.126433,60120.0,60119.0,0.0933]
[1723388986449,0.20827946,60120.0,60119.0,0.0933]
[1723388986657,0.20827946,60120.0,60117.0,0.1231]
[1723388986658,0.116437,60118.0,60117.0,0.1231]
[1723388987207,0.02,60112.0,60105.0,0.0933]
[1723388987421,0.08184646,60106.0,60105.0,0.0933]
[1723388987624,0.08184646,60106.0,60105.0,0.209762]
[1723388987833,0.08184646,60106.0,60105.0,0.0933]
[1723388988031,0.08184646,60113.0,60112.0,0.116449]
[1723388988259,0.08184646,60113.0,60105.0,0.49003992]
[1723388988388,0.08184646,60113.0,60106.0,0.16381492]
[1723388988591,0.08184646,60113.0,60112.0,0.116449]
[1723388989075,0.01,60112.0,60108.0,0.1129]
[1723388989263,0.08184646,60113.0,60109.0,0.16381492]
[1723388989462,0.08184646,60113.0,60108.0,0.1129]
[1723388989463,0.262898,60112.0,60108.0,0.1129]
[1723388989664,0.2429,60112.0,60108.0,0.1129]
[1723388989866,0.08184646,60113.0,60108.0,0.1129]
[1723388990065,0.08184646,60113.0,60109.0,0.116454]
[1723388990279,0.01,60111.0,60108.0,0.1129]
[1723388990484,0.03,60104.0,60103.0,0.0015]
[1723388990672,0.69416846,60104.0,60103.0,0.0015]
[1723388990873,0.69416846,60104.0,60103.0,0.2053]
[1723388990874,0.08184646,60104.0,60103.0,0.2053]
[1723388991108,0.22831046,60104.0,60103.0,0.2053]
[1723388991301,0.08184646,60104.0,60103.0,0.2053]
[1723388991950,0.22831046,60104.0,60103.0,0.1144]
[1723388992331,1.13903443,60104.0,60103.0,0.0015]
[1723388992576,1.33573443,60104.0,60103.0,0.0015]
[1723388992991,1.28961238,60104.0,60103.0,0.0015]
[1723388993166,1.19291238,60104.0,60103.0,0.0015]
[1723388993971,1.42584138,60104.0,60103.0,0.0015]
[1723388994889,2.69033058,60104.0,60103.0,0.0015]
[1723388995089,0.612632,60072.0,60071.0,0.0010163]
[1723388995299,0.67447846,60072.0,60071.0,0.0010163]
[1723388995520,0.02,60076.0,60072.0,0.1129]
[1723388995521,0.01,60075.0,60072.0,0.1129]
[1723388995723,0.01,60074.0,60072.0,0.1129]
[1723388995928,0.01,60077.0,60072.0,0.1129]
[1723388996133,0.01,60074.0,60072.0,0.1129]
[1723388996511,0.146523,60074.0,60072.0,0.1129]
[1723388996880,0.126524,60073.0,60072.0,0.1129]
[1723388997077,0.136526,60072.0,60071.0,0.0010163]
[1723388997286,0.31234092,60072.0,60071.0,0.0010163]
[1723388997518,1.24455292,60072.0,60071.0,0.0010163]
[1723388997722,1.34455292,60072.0,60071.0,0.0010163]
[1723388997924,1.11149992,60072.0,60071.0,0.0010163]
[1723388998132,0.87844692,60072.0,60071.0,0.0010163]
[1723388999049,1.11149992,60072.0,60071.0,0.0010163]
[1723388999272,0.77844692,60072.0,60071.0,0.0010163]
[1723388999603,0.381579,60072.0,60071.0,0.0010163]
[1723388999928,0.146526,60072.0,60071.0,0.0010163]
[1723389000164,0.379579,60072.0,60071.0,0.0010163]
[1723389000403,0.01,60072.0,60071.0,0.0010163]
[1723389000585,0.01,60072.0,60071.0,0.1139163]
[1723389000805,0.03,60074.0,60071.0,0.2048163]
[1723389000960,0.09184646,60072.0,60071.0,0.2048163]
[1723389001733,0.08184646,60072.0,60071.0,0.2048163]
[1723389001943,0.01,60083.0,60079.0,0.116512]
[1723389002144,0.01,60082.0,60080.0,0.00332851]
[1723389002349,0.116526,60072.0,60071.0,0.2048163]
[1723389002570,0.845685,60072.0,60071.0,0.0010163]
[1723389002770,0.847685,60072.0,60071.0,0.0010163]
[1723389002984,0.01,60077.0,60071.0,0.0010163]
[1723389003328,0.01,60078.0,60076.0,0.1129]
[1723389003586,0.08184646,60077.0,60076.0,0.1129]
[1723389004089,0.01,60089.0,60077.0,0.0946]
[1723389004400,0.08184646,60081.0,60077.0,0.0946]
[1723389004631,0.01,60089.0,60085.0,0.1165]
[1723389004880,0.146485,60094.0,60086.0,0.116498]
[1723389005092,0.02,60094.0,60085.0,0.116501]
[1723389005328,0.5729252,60113.0,60042.0,0.37706389]
[1723389005329,0.01,60103.0,60090.0,0.0946]
[1723389005587,0.000833,60106.0,60091.0,0.30784203]
[1723389005837,0.000833,60106.0,60100.0,0.232944]
[1723389006081,0.000833,60106.0,60091.0,0.30784203]
[1723389006082,0.08184646,60105.0,60103.0,0.116464]
[1723389006313,0.000833,60106.0,60092.0,0.1177]
[1723389006578,0.000833,60106.0,60105.0,0.467087]
[1723389006872,0.000833,60106.0,60105.0,0.88682692]
[1723389007082,0.000833,60106.0,60105.0,0.98142692]
[1723389007285,0.000833,60106.0,60105.0,0.74850192]
[1723389007488,0.000833,60106.0,60105.0,0.98142692]
[1723389008242,0.000833,60106.0,60105.0,1.21435192]
[1723389008449,0.000833,60106.0,60105.0,0.98142692]
[1723389009015,0.000833,60106.0,60105.0,0.2123]
[1723389009244,0.000833,60106.0,60105.0,0.328762]
[1723389009423,0.000833,60106.0,60105.0,0.98142692]
[1723389009644,0.000833,60106.0,60105.0,1.21435192]
[1723389010033,0.000833,60106.0,60105.0,1.44727692]
[1723389010435,0.000833,60106.0,60105.0,1.21435192]
[1723389011258,0.000833,60124.0,60105.0,0.18681492]
[1723389011475,0.000833,60124.0,60123.0,0.553482]
[1723389011682,0.000833,60124.0,60123.0,1.20600692]
[1723389012335,0.134699,60143.0,60123.0,0.39101492]
[1723389012544,0.01831,60143.0,60124.0,0.19014022]
[1723389012747,0.134699,60143.0,60131.0,0.232822]
[1723389012948,0.134699,60143.0,60136.0,0.1142]
[1723389013169,0.03,60139.0,60129.0,0.1142]
[1723389013379,0.00831,60143.0,60122.0,0.1142]
[1723389013380,0.01,60127.0,60122.0,0.1142]
[1723389013593,0.08184646,60123.0,60122.0,0.230629]
[1723389013818,0.08184646,60130.0,60129.0,0.116416]
[1723389014277,0.08184646,60130.0,60122.0,0.1372]
[1723389014532,0.08184646,60123.0,60122.0,0.463488]
[1723389014741,0.08184646,60130.0,60129.0,0.116416]
[1723389014968,0.08184646,60130.0,60129.0,0.28023092]
[1723389015185,0.08184646,60137.0,60132.0,0.23282]
[1723389015388,0.08184646,60137.0,60136.0,0.349207]
[1723389015603,0.08184646,60137.0,60134.0,0.09]
[1723389015822,0.08184646,60137.0,60135.0,0.116404]
[1723389016028,0.08184646,60137.0,60136.0,0.28021692]
[1723389016235,0.00831,60143.0,60142.0,0.116391]
[1723389016444,0.00831,60143.0,60142.0,0.51298792]
[1723389016650,0.00831,60143.0,60142.0,0.53598792]
[1723389017061,0.0001,60149.0,60148.0,0.349138]
[1723389017265,0.0001,60149.0,60148.0,0.97291192]
[1723389017688,0.08184646,60160.0,60151.0,0.116373]
[1723389017902,0.08184646,60160.0,60151.0,0.7720059]
[1723389018115,0.08184646,60160.0,60151.0,0.76868192]
[1723389018331,0.08184646,60160.0,60148.0,0.2042]
[1723389018332,0.01,60157.0,60148.0,0.2042]
[1723389018553,0.08184646,60151.0,60150.0,0.232751]
[1723389018788,0.08184646,60151.0,60150.0,0.53594092]
[1723389018993,0.08184646,60151.0,60150.0,0.30318992]
[1723389019199,0.08184646,60151.0,60150.0,0.53594092]
[1723389019483,0.08184646,60151.0,60150.0,0.76869192]
[1723389019690,0.08184646,60160.0,60151.0,0.34912]
[1723389019897,0.00831,60167.0,60151.0,0.88288192]
[1723389020114,0.00831,60167.0,60151.0,1.38992818]
[1723389020326,0.49307874,60175.0,60151.0,1.38992818]
[1723389020327,0.49107874,60174.0,60173.0,0.116331]
[1723389020535,0.49107874,60174.0,60173.0,0.51280792]
[1723389020747,0.01,60182.0,60173.0,0.16381492]
[1723389020962,0.01,60182.0,60168.0,0.1142]
[1723389020963,0.01,60178.0,60174.0,0.16381492]
[1723389021173,0.01,60182.0,60176.0,0.116324]
[1723389021387,0.000831,60183.0,60179.0,0.348958]
[1723389021595,0.000831,60183.0,60177.0,0.1142]
[1723389021596,0.01,60182.0,60177.0,0.1142]
[1723389021799,0.000831,60183.0,60171.0,0.1142]
[1723389021800,0.01,60176.0,60171.0,0.1142]
[1723389022009,0.020831,60183.0,60163.0,0.15672935]
[1723389022010,0.01,60170.0,60163.0,0.15672935]
[1723389022230,0.08184646,60172.0,60163.0,0.15672935]
[1723389022231,0.08184646,60164.0,60163.0,0.1142]
[1723389022426,0.09184646,60164.0,60161.0,0.1142]
[1723389022623,0.20819646,60164.0,60161.0,0.27801492]
[1723389022841,0.01,60156.0,60154.0,0.09]
[1723389023073,0.01,60156.0,60152.0,0.0059]
[1723389023074,0.03,60153.0,60152.0,0.0059]
[1723389023299,0.611847,60153.0,60152.0,0.0059]
[1723389023513,0.613847,60153.0,60152.0,0.0059]
[1723389023725,0.946586,60153.0,60152.0,0.0059]
[1723389024153,0.713847,60153.0,60152.0,0.0059]
[1723389024365,0.87766192,60153.0,60152.0,0.0059]
[1723389024590,1.11040092,60153.0,60152.0,0.0059]
[1723389024799,0.87766192,60153.0,60152.0,0.0059]
[1723389025215,0.713847,60153.0,60152.0,0.0059]
[1723389025637,0.946586,60153.0,60152.0,0.0059]
[1723389025864,0.713847,60153.0,60152.0,0.0059]
[1723389026680,0.946586,60153.0,60152.0,0.0059]
[1723389026890,0.713847,60153.0,60152.0,0.0059]
[1723389027310,0.946586,60153.0,60152.0,0.0059]
[1723389027507,0.713847,60153.0,60152.0,0.0059]
[1723389027832,0.02,60153.0,60152.0,0.0059]
[1723389028041,0.03,60153.0,60152.0,0.0059]
[1723389028242,0.032,60153.0,60152.0,0.0059]
[1723389028462,0.08184646,60155.0,60152.0,0.0059]
[1723389028661,0.03,60156.0,60155.0,0.116366]
[1723389028662,0.01,60156.0,60155.0,0.116366]
[1723389028817,0.01,60156.0,60152.0,0.16971492]
[1723389029030,0.22821546,60153.0,60152.0,0.0059]
[1723389029244,0.09184646,60153.0,60152.0,0.0059]
[1723389029445,0.08184646,60153.0,60152.0,0.122271]
[1723389029675,0.31454546,60164.0,60152.0,0.122271]
[1723389029676,0.01,60156.0,60152.0,0.16971492]
[1723389030004,0.09184646,60153.0,60152.0,0.0059]
[1723389030134,0.08184646,60153.0,60152.0,0.355014]
[1723389030341,0.08184646,60153.0,60152.0,0.51882892]
[1723389030569,0.232679,60169.0,60152.0,0.51882892]
[1723389030570,0.03,60171.0,60165.0,0.232693]
[1723389030763,0.03,60170.0,60152.0,0.40501492]
[1723389030992,0.01,60170.0,60167.0,0.116342]
[1723389031186,0.02,60170.0,60167.0,0.349027]
[1723389031344,0.03,60170.0,60165.0,0.468038]
[1723389031542,0.09184646,60172.0,60167.0,0.349027]
[1723389031742,0.03,60178.0,60167.0,1.07151192]
[1723389031952,0.08184646,60180.0,60167.0,1.44619692]
[1723389033044,0.00831,60185.0,60182.0,0.814194]
[1723389033246,0.00831,60185.0,60182.0,0.88738192]
[1723389033449,0.00831,60185.0,60182.0,1.21330892]
[1723389034481,0.00831,60185.0,60182.0,0.98068192]
[1723389034941,0.00831,60185.0,60182.0,1.21330892]
[1723389035184,0.00831,60185.0,60184.0,0.581547]
[1723389035407,1e-06,60185.0,60184.0,1.31328092]
[1723389035619,1e-06,60189.0,60188.0,0.58151]
[1723389035825,1e-06,60189.0,60188.0,1.54583292]
[1723389036054,1e-06,60189.0,60188.0,1.65410929]
[1723389036296,0.08184646,60215.0,60208.0,0.813844]
[1723389036540,0.08184646,60215.0,60208.0,1.026144]
[1723389036827,0.08184646,60215.0,60208.0,0.793617]
[1723389037080,0.08184646,60215.0,60208.0,1.026144]
[1723389037388,0.08184646,60215.0,60208.0,1.18995892]
[1723389037593,0.08184646,60215.0,60208.0,1.54548592]
[1723389038095,0.08184646,60215.0,60212.0,1.165299]
[1723389038546,0.49107874,60225.0,60212.0,1.68462492]
[1723389038549,0.49107874,60225.0,60212.0,1.77792492]
[1723389038855,0.09024646,60229.0,60212.0,1.77792492]
[1723389039113,0.09024646,60229.0,60212.0,1.54541392]
[1723389039365,0.01,60220.0,60212.0,0.74788092]
[1723389039647,0.01,60220.0,60212.0,0.51258092]
[1723389039648,0.01,60218.0,60212.0,0.51258092]
[1723389039907,0.01,60218.0,60212.0,0.16381492]
[1723389040158,0.02,60218.0,60212.0,0.28006992]
[1723389040437,0.03,60216.0,60212.0,0.16381492]
[1723389040708,0.08184646,60215.0,60212.0,0.116255]
[1723389040950,0.01,60204.0,60203.0,0.116271]
[1723389041211,0.01,60203.0,60198.0,0.119]
[1723389041460,0.01,60203.0,60200.0,0.116277]
[1723389041689,0.01,60203.0,60202.0,0.116275]
[1723389041933,0.08184646,60204.0,60203.0,0.116273]
[1723389042186,0.08184646,60204.0,60203.0,0.348819]
[1723389042424,0.01,60203.0,60202.0,0.16381492]
[1723389042655,0.08184646,60204.0,60202.0,0.28008792]
[1723389042933,0.08184646,60204.0,60202.0,0.16381492]
[1723389043198,0.01,60203.0,60195.0,0.232576]
[1723389043434,0.01,60203.0,60195.0,0.116287]
[1723389043435,0.08184646,60196.0,60195.0,0.116287]
[1723389043683,0.08184646,60196.0,60195.0,0.371864]
[1723389043916,0.08184646,60196.0,60195.0,0.604441]
[1723389044365,0.08184646,60204.0,60195.0,0.604441]
[1723389044366,0.08184646,60204.0,60203.0,0.581365]
[1723389044580,0.0103,60214.0,60212.0,0.348766]
[1723389044581,0.02832,60213.0,60212.0,0.348766]
[1723389044787,0.02832,60213.0,60212.0,0.139255]
[1723389045007,0.01832,60213.0,60212.0,0.023]
[1723389045189,0.01,60205.0,60204.0,0.16381492]
[1723389045393,0.01,60205.0,60204.0,0.18681492]
[1723389045589,0.08184646,60206.0,60204.0,0.30308392]
[1723389045768,0.08184646,60206.0,60205.0,0.371807]
[1723389045971,0.08184646,60206.0,60205.0,0.76815992]
[1723389046492,0.08184646,60206.0,60205.0,1.00069792]
[1723389046846,0.08184646,60206.0,60205.0,0.76815992]
[1723389047544,0.08184646,60206.0,60205.0,1.00069792]
[1723389047928,0.08184646,60206.0,60205.0,1.20889792]
[1723389048765,0.08184646,60206.0,60205.0,1.44143592]
[1723389049579,0.08184646,60206.0,60205.0,1.20889792]
[1723389049896,0.08184646,60206.0,60205.0,1.38409792]
[1723389050129,0.08184646,60206.0,60205.0,1.20889792]
[1723389051572,0.08184646,60206.0,60205.0,1.44143592]
[1723389051780,0.00832,60213.0,60212.0,0.813788]
[1723389051978,0.00832,60213.0,60212.0,1.00060292]
[1723389052253,0.00832,60213.0,60212.0,1.23311392]
[1723389052458,0.00832,60213.0,60212.0,1.35021392]
[1723389053105,0.00832,60213.0,60212.0,1.11770292]
[1723389053251,0.00832,60213.0,60212.0,1.35021392]
[1723389053682,0.00832,60213.0,60212.0,1.54321392]
[1723389055120,1e-06,60213.0,60212.0,1.77572492]
[1723389055520,1e-06,60214.0,60213.0,0.813774]
[1723389055719,1e-06,60214.0,60213.0,2.12019592]
[1723389055878,1e-06,60214.0,60213.0,2.37570292]
[1723389056308,1e-06,60214.0,60213.0,2.48358473]
[1723389056485,1e-06,60214.0,60213.0,2.37570292]
[1723389056666,1e-06,60214.0,60213.0,2.60820992]
[1723389056873,1e-06,60214.0,60213.0,2.37570292]
[1723389057561,0.0119927,60240.0,60228.0,1.023675]
[1723389057748,0.0119927,60240.0,60228.0,1.21048992]
[1723389057958,0.0219927,60240.0,60228.0,1.21048992]
[1723389058162,0.0119927,60240.0,60228.0,1.21048992]
[1723389058540,0.0119927,60240.0,60228.0,1.44293992]
[1723389059320,0.01,60236.0,60228.0,1.21048992]
[1723389059522,0.0119927,60240.0,60228.0,1.11748992]
[1723389059903,0.0084,60229.0,60228.0,1.34993992]
[1723389060732,0.0084,60229.0,60228.0,1.11748992]
[1723389061153,0.0084,60229.0,60228.0,1.44993992]
[1723389061347,0.0084,60229.0,60228.0,1.55746283]
[1723389062581,1e-06,60235.0,60234.0,0.813491]
[1723389062791,1e-06,60235.0,60234.0,1.60326921]
[1723389062994,1e-06,60235.0,60234.0,2.06812121]
[1723389063199,0.0119927,60240.0,60239.0,0.813424]
[1723389063424,0.0015,60267.0,60263.0,0.580787]
[1723389063653,0.49107874,60282.0,60279.0,0.348379]
[1723389063900,0.49107874,60282.0,60279.0,0.812885]
[1723389064074,0.01,60288.0,60279.0,0.93497875]
[1723389064282,0.00829,60290.0,60279.0,0.93497875]
[1723389064283,0.131329,60280.0,60279.0,0.023]
[1723389064503,0.131329,60280.0,60254.0,0.00910112]
[1723389064504,0.01,60271.0,60257.0,0.0999]
[1723389064732,0.01,60271.0,60234.0,0.2938]
[1723389064733,0.1305,60265.0,60258.0,0.023]
[1723389064928,0.01,60263.0,60257.0,0.023]
[1723389065210,0.01,60258.0,60252.0,0.232355]
[1723389065407,0.01,60255.0,60253.0,0.116175]
[1723389065609,0.02,60258.0,60243.0,0.1183]
[1723389065814,0.01,60258.0,60257.0,0.580845]
[1723389066026,0.03,60258.0,60257.0,0.348507]
[1723389066220,0.03,60258.0,60257.0,0.580845]
[1723389066427,0.01,60257.0,60254.0,0.232346]
[1723389066643,0.01,60257.0,60256.0,0.348513]
[1723389066847,0.03,60258.0,60257.0,0.116169]
[1723389067057,0.03,60258.0,60257.0,0.348507]
[1723389067523,0.01,60258.0,60257.0,0.348507]
[1723389067657,0.01,60258.0,60257.0,0.580845]
[1723389067864,0.02,60258.0,60257.0,0.580845]
[1723389068066,0.01,60258.0,60257.0,0.74465992]
[1723389068272,0.02,60258.0,60257.0,0.53532192]
[1723389068475,0.01,60258.0,60257.0,0.53532192]
[1723389068902,0.01,60258.0,60257.0,0.76765992]
[1723389069315,0.0878,60267.0,60266.0,0.116151]
[1723389069522,0.01,60269.0,60268.0,0.348442]
[1723389069728,0.08184646,60271.0,60270.0,0.116144]
[1723389069933,0.08184646,60271.0,60270.0,0.74453492]
[1723389070178,0.08184646,60271.0,60270.0,0.76753492]
[1723389070800,0.10184646,60271.0,60270.0,0.371432]
[1723389071011,0.11184646,60271.0,60270.0,0.023]
[1723389071269,0.11184646,60271.0,60270.0,0.116144]
[1723389071475,0.09184646,60271.0,60270.0,0.76753492]
[1723389071693,0.10184646,60271.0,60270.0,0.53524692]
[1723389071896,0.11184646,60271.0,60270.0,0.18681492]
[1723389072095,0.11184646,60271.0,60270.0,0.023]
[1723389072349,0.02,60268.0,60267.0,0.116149]
[1723389072665,0.01,60268.0,60267.0,0.371448]
[1723389072937,0.112,60272.0,60270.0,0.58072]
[1723389073117,0.02,60284.0,60279.0,0.580632]
[1723389073328,0.0878,60295.0,60279.0,1.30895292]
[1723389073541,0.01,60291.0,60279.0,1.48905342]
[1723389073745,0.02,60294.0,60279.0,1.72130642]
[1723389073951,0.000829,60296.0,60279.0,1.72130642]
[1723389074159,0.010829,60296.0,60279.0,1.76402868]
[1723389074354,0.000829,60296.0,60279.0,1.76402868]
[1723389074585,0.010829,60296.0,60279.0,1.53177568]
[1723389074790,0.01,60282.0,60279.0,0.99969992]
[1723389075156,0.02,60282.0,60279.0,0.99969992]
[1723389075373,0.08184646,60283.0,60279.0,0.99969992]
[1723389075945,0.09184646,60283.0,60279.0,0.99969992]
[1723389076103,0.08184646,60283.0,60279.0,0.99969992]
[1723389077620,0.000929,60289.0,60279.0,0.99969992]
[1723389077621,0.000929,60289.0,60279.0,1.33195292]
[1723389077832,0.000929,60289.0,60279.0,1.37491956]
[1723389078035,0.000929,60289.0,60279.0,1.49221956]
[1723389078243,1e-06,60280.0,60279.0,1.85191907]
[1723389078459,1e-06,60280.0,60279.0,1.72740106]
[1723389078668,1e-06,60280.0,60279.0,1.53755292]
[1723389078880,1e-06,60280.0,60279.0,1.96560839]
[1723389079505,0.000929,60289.0,60279.0,0.92047039]
[1723389079706,0.000829,60296.0,60279.0,0.92047039]
[1723389079707,0.000829,60296.0,60295.0,0.116095]
[1723389079921,0.000829,60296.0,60295.0,1.28208292]
[1723389080129,0.000829,60296.0,60295.0,1.76946492]
[1723389080329,0.000829,60296.0,60295.0,1.53727392]
[1723389080784,0.000829,60296.0,60295.0,1.58320722]
[1723389081104,0.000829,60296.0,60295.0,1.62835373]
[1723389081480,0.49107874,60325.0,60308.0,0.32167]
[1723389081693,0.49107874,60325.0,60308.0,1.16384673]
[1723389081897,0.49107874,60325.0,60308.0,1.62812873]
[1723389082094,0.01,60324.0,60308.0,1.62812873]
[1723389082300,0.08184646,60330.0,60308.0,1.62812873]
[1723389082301,0.08184646,60330.0,60308.0,1.58298222]
[1723389082501,0.49107874,60324.0,60308.0,1.86026973]
[1723389082706,0.08184646,60330.0,60308.0,1.86026973]
[1723389082943,0.0101,60329.0,60308.0,1.86026973]
[1723389083144,0.0001,60329.0,60315.0,1.276627]
[1723389083376,0.0001,60329.0,60328.0,0.348096]
[1723389083578,0.0001,60329.0,60328.0,1.2845604]
[1723389083813,0.0001,60329.0,60328.0,1.1672604]
[1723389084030,0.0001,60329.0,60328.0,0.74397492]
[1723389084031,0.0101,60329.0,60328.0,0.74397492]
[1723389084245,0.0101,60329.0,60328.0,0.53491092]
[1723389084246,0.2396,60329.0,60328.0,0.53491092]
[1723389084449,0.2196,60329.0,60328.0,0.53491092]
[1723389084662,0.2096,60329.0,60328.0,0.76697492]
[1723389084877,0.2196,60329.0,60328.0,0.76697492]
[1723389085093,0.0001,60329.0,60328.0,0.76697492]
[1723389085326,0.0001,60329.0,60328.0,1.19383892]
[1723389085536,0.0001,60329.0,60328.0,1.42590292]
[1723389085742,0.0001,60329.0,60328.0,1.46815578]
[1723389085950,0.0001,60329.0,60328.0,1.51417652]
[1723389086287,0.0001,60329.0,60328.0,1.47192366]
[1723389086490,0.0001,60329.0,60328.0,1.51720985]
[1723389086714,0.0001,60329.0,60328.0,1.33110292]
[1723389086907,0.0001,60329.0,60328.0,1.37712366]
[1723389087322,0.0001,60329.0,60328.0,1.33110292]
[1723389087522,0.0001,60329.0,60328.0,1.14780966]
[1723389087720,0.0001,60329.0,60328.0,1.09903892]
[1723389088161,0.0101,60329.0,60328.0,0.74397492]
[1723389088360,0.1199,60329.0,60328.0,0.16381492]
[1723389088668,0.1199,60329.0,60310.0,0.0948]
[1723389088669,0.01,60318.0,60317.0,0.34816]
[1723389088848,0.08184646,60324.0,60323.0,0.348124]
[1723389089054,0.09184646,60324.0,60323.0,0.51193892]
[1723389089831,0.09184646,60324.0,60323.0,0.27985592]
[1723389090408,0.11184646,60324.0,60323.0,0.16381492]
[1723389090604,0.31834646,60324.0,60323.0,0.16381492]
[1723389091006,0.31834646,60324.0,60323.0,0.27985592]
[1723389091238,0.31834646,60324.0,60321.0,0.232089]
[1723389091239,0.31834646,60324.0,60322.0,0.116043]
[1723389091451,0.03,60316.0,60315.0,0.348171]
[1723389091652,0.11184646,60316.0,60315.0,0.74409992]
[1723389091907,0.09184646,60316.0,60315.0,0.74409992]
[1723389092138,0.09184646,60316.0,60315.0,0.16381492]
[1723389092139,0.22634646,60316.0,60315.0,0.16381492]